bitfinex/quotes_ETHUSD_20220227
["timestamp","ask_amount","ask_price","bid_price","bid_amount"]
[1645945811964,5.2168,2738.3,2737.3,0.68481029]
[1645945812166,8.72267624,2738.3,2737.3,0.68481029]
[1645945813219,5.2168,2738.3,2737.3,0.68481029]
[1645945813418,5.22267624,2738.3,2737.4,0.68481029]
[1645945813620,8.72267624,2738.3,2737.4,0.68481029]
[1645945813819,9.25367624,2738.3,2737.4,0.68481029]
[1645945814020,5.75367624,2738.3,2737.4,0.68481029]
[1645945814523,0.3663,2738.1,2737.2,0.68536818]
[1645945814722,0.3663,2737.9,2737.2,0.68536818]
[1645945814920,0.531,2738.1,2737.9,0.01992418]
[1645945814921,3.5,2738.0,2737.9,0.01992418]
[1645945815124,0.531,2738.1,2737.9,0.01992418]
[1645945815527,3.5,2738.0,2737.9,0.01992418]
[1645945816065,0.531,2738.0,2737.9,0.01992418]
[1645945817870,1.26493399,2738.0,2737.9,0.01992418]
[1645945818075,1.26493399,2738.0,2737.9,0.81783948]
[1645945822318,0.73393399,2738.0,2737.9,0.81783948]
[1645945822517,0.73393399,2738.2,2737.9,0.81783948]
[1645945822716,0.73393399,2738.2,2738.0,0.7979153]
[1645945825160,3.70587669,2738.3,2738.1,7.7979153]
[1645945825362,3.7,2738.3,2738.2,2.39434502]
[1645945825562,3.70587669,2738.3,2738.1,9.28481029]
[1645945825759,3.70587669,2738.3,2738.2,4.60619999]
[1645945825965,3.70587669,2738.3,2738.2,5.29101028]
[1645945826162,3.70587669,2738.3,2738.2,6.29101028]
[1645945826364,3.7,2738.3,2738.2,6.29101028]
[1645945826562,2.84781352,2738.3,2738.2,10.60619999]
[1645945826764,2.84781352,2738.3,2738.2,11.51528091]
[1645945826964,2.84781352,2738.3,2738.2,5.60619999]
[1645945827425,2.84781352,2738.3,2738.2,10.60619999]
[1645945827825,0.00587681,2738.4,2738.3,7.0]
[1645945828023,0.00587681,2738.4,2738.3,10.8]
[1645945828327,0.00587681,2738.4,2738.3,12.85130875]
[1645945828536,0.00587681,2738.4,2738.3,14.06725779]
[1645945828828,0.00096,2739.5,2738.3,14.06725779]
[1645945829029,0.00587675,2738.5,2738.3,14.06725779]
[1645945829332,0.00587675,2738.5,2738.4,8.8663]
[1645945829532,0.00587675,2738.5,2738.4,21.26224904]
[1645945829730,0.00587675,2738.5,2738.4,22.40824904]
[1645945830133,0.00096,2739.7,2738.4,22.40824904]
[1645945830330,0.00096,2739.7,2738.8,5.0]
[1645945830629,0.02349765,2739.6,2738.8,5.3]
[1645945830929,0.02349765,2739.6,2738.8,1.3]
[1645945831166,0.00096,2739.7,2738.8,1.3]
[1645945831361,0.00096,2739.7,2738.8,0.3]
[1645945831565,0.0058762,2739.3,2739.0,1.16110668]
[1645945831763,0.0058762,2739.3,2739.0,1.46110668]
[1645945832364,0.00096,2739.7,2739.0,1.46110668]
[1645945832565,1.146,2739.8,2739.0,1.46110668]
[1645945832763,0.00587623,2739.3,2739.0,1.46110668]
[1645945833562,0.00096,2739.7,2739.0,0.3]
[1645945833769,1.146,2739.8,2738.9,0.3]
[1645945833966,0.00587623,2739.3,2738.8,0.1459]
[1645945834566,0.00587623,2739.3,2739.2,5.3663]
[1645945834852,0.25,2740.0,2739.7,0.03260276]
[1645945834853,0.00096,2739.9,2739.7,0.03260276]
[1645945835033,0.25,2740.0,2739.7,0.03260276]
[1645945835431,0.25,2740.0,2739.7,3.89890276]
[1645945835632,0.25,2740.0,2739.7,0.39890276]
[1645945835832,0.25,2740.0,2739.8,1.3893669]
[1645945836343,0.25587578,2740.0,2739.8,1.3893669]
[1645945837135,0.25,2740.0,2739.8,1.3893669]
[1645945837537,0.25587575,2740.0,2739.8,1.6893669]
[1645945837936,0.25587575,2740.0,2739.8,0.3]
[1645945838136,0.25587575,2740.0,2739.7,0.69890276]
[1645945838337,0.25,2740.0,2739.7,0.69890276]
[1645945838763,0.25587575,2740.0,2739.7,0.69890276]
[1645945839164,0.25587575,2740.0,2739.8,1.06520956]
[1645945839368,0.25587575,2740.0,2739.8,1.36520956]
[1645945839566,3.95,2740.0,2739.8,1.36520956]
[1645945839766,3.95587575,2740.0,2739.8,4.86520956]
[1645945839970,3.97630857,2740.0,2739.8,1.36520956]
[1645945840168,3.97630857,2740.0,2739.8,2.36520956]
[1645945840366,3.97630857,2740.0,2739.8,1.36520956]
[1645945840767,3.97043282,2740.0,2739.8,1.36520956]
[1645945841172,3.97630857,2740.0,2739.8,1.36520956]
[1645945841576,3.97630857,2740.0,2739.8,3.8]
[1645945841776,3.97630857,2740.0,2739.8,1.3]
[1645945841974,3.97043282,2740.0,2739.8,4.8]
[1645945842336,3.97043282,2740.0,2739.8,1.3]
[1645945842337,3.97630857,2740.0,2739.8,1.3]
[1645945842722,3.97630857,2740.0,2739.7,0.63260276]
[1645945842923,3.97630857,2740.0,2739.8,1.14901834]
[1645945843124,3.97043282,2740.0,2739.8,1.14901834]
[1645945843325,3.97043282,2740.0,2739.8,1.44901834]
[1645945843526,3.9763086,2740.0,2739.8,1.44901834]
[1645945844326,3.9763086,2740.0,2739.8,0.3]
[1645945844627,3.97630857,2740.0,2739.7,1.33260276]
[1645945844827,3.97630857,2740.0,2739.7,0.33260276]
[1645945845025,3.97630857,2740.0,2739.7,0.03260276]
[1645945845627,3.97043282,2740.0,2739.7,0.03260276]
[1645945845828,3.9763086,2740.0,2739.7,0.03260276]
[1645945846873,3.97043282,2740.0,2739.7,0.03260276]
[1645945847073,3.9763086,2740.0,2739.7,0.03260276]
[1645945848077,3.97043282,2740.0,2739.7,0.03260276]
[1645945848276,3.9763086,2740.0,2739.7,0.03260276]
[1645945848877,2.49598392,2740.0,2739.9,16.5463]
[1645945849281,2.49010814,2740.0,2739.9,18.64934301]
[1645945849476,2.49010814,2740.0,2739.9,18.79524301]
[1645945850116,2.49010814,2740.0,2739.9,20.11774811]
[1645945850714,2.49010814,2740.0,2739.9,21.03007811]
[1645945851927,0.00096,2741.1,2740.0,7.5]
[1645945851928,0.00587269,2740.1,2740.0,7.5]
[1645945852124,0.00587269,2740.1,2740.0,29.51962301]
[1645945852125,7.269e-05,2740.1,2740.0,29.51962301]
[1645945852323,7.269e-05,2740.1,2740.0,33.85762301]
[1645945852519,7.269e-05,2740.1,2740.0,38.43746293]
[1645945852719,7.269e-05,2740.1,2740.0,38.61754401]
[1645945852922,9.98386,2742.0,2741.3,1.16898144]
[1645945853121,9.98386,2742.0,2741.4,3.5]
[1645945853122,6.7615,2742.0,2741.4,3.5]
[1645945853320,6.7615,2742.0,2740.9,3.5]
[1645945853321,0.00096,2741.9,2740.9,3.5]
[1645945853575,0.00096,2741.9,2741.0,16.18]
[1645945853777,0.00096,2741.9,2741.3,11.18]
[1645945853976,0.00096,2742.3,2741.4,14.68]
[1645945854274,0.00096,2742.0,2741.4,14.98]
[1645945854480,0.00096,2742.3,2741.4,17.32359789]
[1645945854675,0.7137622,2742.3,2741.4,15.98]
[1645945855074,0.7137622,2742.3,2741.4,4.8]
[1645945855275,0.00096,2742.3,2741.4,1.0]
[1645945855475,0.00096,2742.3,2740.8,0.3]
[1645945855476,0.64413152,2741.3,2740.8,0.3]
[1645945855874,0.64413152,2741.3,2740.5,1.48460442]
[1645945856077,0.64413152,2741.3,2740.5,12.66460442]
[1645945856281,0.64413152,2741.3,2740.6,14.68]
[1645945856682,0.00586781,2741.0,2740.6,11.18]
[1645945856881,0.00586781,2741.0,2740.7,15.0463]
[1645945857088,0.05469578,2742.4,2740.9,16.5463]
[1645945857327,0.05469578,2742.4,2741.6,11.48]
[1645945857813,0.05469578,2742.4,2741.6,12.48]
[1645945858213,0.05469578,2742.4,2741.6,1.3]
[1645945858613,0.05469578,2742.4,2741.2,4.5]
[1645945858814,0.05469578,2742.4,2741.2,1.0]
[1645945859013,0.05469578,2742.4,2741.2,4.8]
[1645945859622,0.05469578,2742.4,2741.2,17.08118869]
[1645945860214,0.05469578,2742.4,2741.2,2.40118869]
[1645945860413,0.05469578,2742.4,2741.2,1.3]
[1645945860616,0.05469578,2742.4,2741.2,3.8]
[1645945860814,0.05469578,2742.4,2741.2,4.8]
[1645945861076,0.05469578,2742.4,2741.2,1.0]
[1645945861281,0.20049578,2742.4,2741.1,1.9934]
[1645945861478,0.36726,2742.3,2741.1,1.9934]
[1645945861679,0.00586723,2741.9,2741.3,0.00586867]
[1645945862584,0.00096,2742.3,2741.1,2.5934]
[1645945862781,0.00586736,2741.7,2741.3,0.00586837]
[1645945863782,3.50096,2742.0,2741.0,1.0]
[1645945863984,0.00586742,2741.6,2741.3,0.00586822]
[1645945864582,0.00586742,2741.6,2740.6,13.3999975]
[1645945864830,0.89826,2742.1,2740.6,13.6999975]
[1645945865027,0.3663,2742.0,2740.6,13.6999975]
[1645945865229,0.00096,2741.9,2740.6,13.6999975]
[1645945865431,3.86726,2741.9,2740.6,13.6999975]
[1645945865629,0.36726,2741.9,2740.6,13.6999975]
[1645945866338,0.00408406,2741.5,2740.6,13.6999975]
[1645945866835,0.00408406,2741.5,2740.5,2.2643]
[1645945867034,0.00408406,2741.5,2740.5,2.04555623]
[1645945867235,0.00096,2741.7,2740.5,1.9643]
[1645945867634,0.00408369,2741.5,2740.5,1.9643]
[1645945867838,0.00408369,2741.5,2740.6,1.16737567]
[1645945868337,0.00408369,2741.5,2740.5,1.9643]
[1645945868574,3.86726,2741.7,2740.5,1.9643]
[1645945868873,0.00586702,2741.5,2740.9,0.0058683]
[1645945869676,6.78456,2741.9,2740.6,16.09684263]
[1645945869875,6.78456,2741.9,2741.1,0.0058682]
[1645945869876,0.00586724,2741.5,2741.1,0.0058682]
[1645945870878,7.45086,2741.9,2740.6,5.91684263]
[1645945871076,0.68427227,2741.8,2740.6,5.91684263]
[1645945871281,0.00586739,2741.5,2741.2,0.00586814]
[1645945872179,0.00096,2741.8,2740.6,17.09684263]
[1645945872430,0.00096,2741.8,2741.2,0.00586821]
[1645945872431,0.00586747,2741.5,2741.2,0.00586821]
[1645945873231,0.00096,2741.8,2741.2,1.05456632]
[1645945873428,0.00096,2742.0,2740.9,4.8]
[1645945873627,1.3227,2742.2,2741.2,0.00178349]
[1645945873628,0.00096,2741.8,2741.2,0.00178349]
[1645945873827,0.68624403,2742.1,2741.2,0.00178349]
[1645945874429,0.68624403,2742.1,2741.0,0.83026316]
[1645945874631,0.68624403,2742.1,2741.0,1.90663154]
[1645945874829,0.00586307,2741.8,2741.2,0.00586441]
[1645945875030,4.53427184,2742.2,2741.2,0.00586441]
[1645945875235,0.68563168,2742.1,2741.2,0.00586441]
[1645945875629,0.68563168,2742.1,2741.0,2.07636838]
[1645945875829,0.68563168,2742.1,2741.0,1.07636838]
[1645945877075,0.68563168,2742.1,2741.3,0.00178777]
[1645945877879,4.68563168,2742.1,2741.3,0.00178777]
[1645945878074,0.68563168,2742.0,2741.0,1.0]
[1645945878276,0.68563168,2742.0,2741.3,0.00178777]
[1645945879378,0.68563168,2742.0,2741.1,0.83140722]
[1645945879577,0.00682275,2741.9,2741.3,0.00586403]
[1645945879837,0.68563168,2741.8,2741.3,0.00586403]
[1645945880428,0.68563168,2741.8,2741.0,0.95]
[1645945880727,0.68563168,2741.7,2741.3,0.00586388]
[1645945880924,0.0058626,2741.9,2741.3,0.00586388]
[1645945881128,0.68720445,2741.8,2741.3,0.00586388]
[1645945881627,0.68720445,2741.8,2741.0,1.34729739]
[1645945881827,0.00096,2742.1,2741.1,0.83447789]
[1645945882029,0.0058626,2741.9,2741.3,0.00586388]
[1645945882229,0.68727057,2741.8,2741.3,0.00586388]
[1645945882830,1.05357057,2741.8,2740.6,1.0]
[1645945883033,0.68823057,2741.7,2740.7,0.83471569]
[1645945883428,0.68823057,2741.7,2740.8,0.83471569]
[1645945883668,0.68823057,2741.7,2740.9,0.83471569]
[1645945883868,0.68823057,2741.7,2740.5,3.1387]
[1645945884069,0.68823057,2741.7,2740.6,0.83511244]
[1645945884270,0.68823057,2741.7,2740.6,1.13511244]
[1645945884469,1.21923057,2741.7,2741.2,0.00585964]
[1645945884668,0.68727057,2741.6,2741.2,0.00585964]
[1645945885071,0.68727057,2741.5,2741.2,0.00058543]
[1645945885270,0.83413057,2741.5,2740.5,0.83593314]
[1645945885470,0.68727057,2741.4,2740.5,0.83593314]
[1645945885678,0.68727057,2741.4,2740.5,4.33593314]
[1645945885679,0.00096,2741.3,2740.5,4.33593314]
[1645945885870,0.00096,2741.3,2740.6,0.83593314]
[1645945886069,0.68823057,2741.3,2740.7,0.83593314]
[1645945886275,0.68727057,2741.3,2740.8,0.83593314]
[1645945886475,0.68727057,2741.3,2740.9,0.83593314]
[1645945886675,0.68727057,2741.3,2740.5,3.5]
[1645945886876,0.68823057,2741.3,2740.6,0.83621467]
[1645945887075,0.68727057,2741.2,2740.6,0.83621467]
[1645945887349,0.00096,2741.5,2740.6,0.83621467]
[1645945887539,0.3663,2741.7,2740.6,0.83621467]
[1645945887540,0.6887801,2741.6,2740.6,0.83621467]
[1645945887738,0.6897401,2741.5,2740.6,0.83621467]
[1645945887939,0.6887801,2741.4,2740.6,2.11469426]
[1645945888139,0.6887801,2741.3,2740.7,0.83621467]
[1645945888344,0.6887801,2741.3,2740.8,0.83621467]
[1645945888345,0.00096,2741.3,2740.8,0.83621467]
[1645945888540,0.69004636,2741.6,2740.9,0.83621467]
[1645945888742,0.531,2741.7,2740.5,4.5]
[1645945889141,3.5,2741.5,2741.1,0.00585978]
[1645945890040,3.5,2741.5,2740.5,5.74827779]
[1645945890242,3.5,2741.5,2741.1,0.00585985]
[1645945891273,3.5,2741.5,2740.5,5.74827779]
[1645945891472,3.5,2741.5,2741.1,0.00585985]
[1645945892477,3.5,2741.5,2740.6,4.5]
[1645945892677,3.5,2741.5,2741.1,0.00585985]
[1645945893479,3.5,2741.5,2740.6,4.75585985]
[1645945894077,3.50096,2741.5,2740.6,4.75585985]
[1645945894478,3.50096,2741.5,2740.6,5.43973029]
[1645945894678,3.5,2741.5,2740.6,5.43973029]
[1645945894931,3.5,2741.5,2740.6,1.93973029]
[1645945895333,3.5,2741.5,2740.6,0.93973029]
[1645945897634,3.50585856,2741.5,2740.9,0.0058598]
[1645945898434,3.50585856,2741.5,2740.6,0.93973029]
[1645945898435,3.5,2741.5,2740.7,0.68387044]
[1645945898873,3.5,2741.5,2740.6,0.98387044]
[1645945898874,3.50407947,2741.5,2740.6,0.98387044]
[1645945899074,0.00096,2741.4,2740.6,0.98387044]
[1645945899274,3.50407947,2741.5,2740.6,0.68387044]
[1645945899475,3.50407947,2741.5,2740.7,3.5]
[1645945899673,3.5,2741.5,2740.7,3.5]
[1645945899878,3.50407924,2741.5,2740.7,4.5]
[1645945900076,3.50407924,2741.5,2740.6,1.98387044]
[1645945900378,3.50407924,2741.5,2740.7,3.5]
[1645945900578,3.50407924,2741.5,2740.6,0.98387044]
[1645945900977,3.5,2741.5,2740.6,0.98387044]
[1645945901185,3.50407924,2741.5,2740.6,0.68387044]
[1645945902082,3.5,2741.5,2740.7,3.5]
[1645945902316,3.50585603,2741.5,2740.9,0.00585727]
[1645945903220,3.5,2741.5,2740.7,0.68387044]
[1645945903618,3.50585626,2741.5,2741.0,0.00585739]
[1645945904618,3.5,2741.5,2740.7,0.68387044]
[1645945904818,3.5,2741.5,2741.0,0.00585746]
[1645945904819,4.19735233,2741.5,2741.0,0.00585746]
[1645945905018,4.19639233,2741.5,2741.0,0.00585746]
[1645945905620,4.190536,2741.5,2740.6,0.68387044]
[1645945905821,4.140536,2741.5,2740.6,0.68387044]
[1645945906082,4.14639233,2741.5,2741.0,0.00585746]
[1645945906887,4.140536,2741.5,2740.6,0.68387044]
[1645945907087,4.14639233,2741.5,2741.0,0.00585746]
[1645945908188,3.45,2741.5,2740.9,0.5]
[1645945908388,0.00096,2741.4,2741.0,0.00585746]
[1645945908589,3.45585633,2741.5,2741.0,0.00585746]
[1645945908798,3.45585633,2741.5,2741.1,0.83589036]
[1645945908799,0.69719156,2741.4,2741.1,0.83589036]
[1645945909492,0.69719156,2741.4,2741.2,0.83589036]
[1645945909693,0.69719156,2741.4,2741.3,0.83589036]
[1645945909920,0.69719156,2741.4,2741.1,0.83573857]
[1645945910721,0.69719156,2741.4,2741.2,0.83573857]
[1645945910925,0.69719156,2741.4,2741.3,0.83573857]
[1645945911124,0.69719156,2741.4,2741.1,0.83573857]
[1645945911925,0.69719156,2741.4,2741.2,0.83573857]
[1645945912125,0.69719156,2741.4,2741.3,0.83573857]
[1645945912727,0.69719156,2741.4,2741.1,0.83573857]
[1645945912927,0.69719156,2741.4,2741.2,0.83573857]
[1645945913129,0.69719156,2741.3,2741.0,0.00585761]
[1645945913328,0.00585648,2741.5,2741.1,0.83234706]
[1645945913579,0.70106755,2741.4,2741.1,0.83234706]
[1645945914384,0.70106755,2741.3,2741.2,0.83234706]
[1645945914780,0.70106755,2741.4,2741.0,0.00585746]
[1645945914981,0.70106755,2741.4,2741.1,0.83234706]
[1645945915182,0.70106755,2741.4,2741.2,0.83234706]
[1645945915480,0.70106755,2741.4,2741.3,0.8339073]
[1645945915681,0.70106755,2741.4,2741.1,0.83381506]
[1645945916684,0.690536,2741.6,2741.2,0.83381506]
[1645945916685,0.70106755,2741.3,2741.2,0.83381506]
[1645945916890,0.00681633,2741.5,2741.2,0.83381506]
[1645945917087,0.70106755,2741.4,2741.0,0.00585746]
[1645945917348,0.70106755,2741.4,2741.1,0.83380958]
[1645945917934,0.70106755,2741.3,2741.2,0.83380958]
[1645945918334,0.70106755,2741.4,2741.2,0.83380958]
[1645945918539,0.70106755,2741.3,2741.0,0.00585746]
[1645945918739,0.70106755,2741.2,2741.1,0.83373965]
[1645945918940,0.70118814,2741.4,2741.1,0.83373965]
[1645945919143,0.70118814,2741.3,2741.2,0.83373965]
[1645945919340,0.70118651,2741.3,2741.0,0.00585731]
[1645945919545,0.70118901,2741.2,2741.1,0.83373965]
[1645945920041,0.70125841,2741.2,2741.1,0.83373965]
[1645945920242,5.383396,2741.7,2741.1,0.83373965]
[1645945920442,5.383396,2741.7,2741.2,0.83373965]
[1645945920443,0.00585618,2741.5,2741.2,0.83373965]
[1645945920641,0.70126278,2741.4,2741.3,0.83373965]
[1645945921080,0.70126278,2741.4,2741.1,0.83373965]
[1645945921283,0.00096,2741.6,2741.2,0.83373965]
[1645945921482,0.00096,2741.6,2741.3,0.83373965]
[1645945921483,0.70125613,2741.6,2741.3,0.83373965]
[1645945921685,0.00585648,2741.5,2741.4,0.83373965]
[1645945922086,0.7071483,2741.5,2741.1,0.68387044]
[1645945922281,0.00585648,2741.5,2741.1,0.68387044]
[1645945922482,0.70129651,2741.4,2741.1,0.68387044]
[1645945922681,3.4,2741.5,2741.1,0.68387044]
[1645945922883,0.70135926,2741.4,2741.2,0.83373965]
[1645945923085,0.7013642,2741.3,2741.0,0.68972797]
[1645945923287,3.40585641,2741.5,2741.0,0.68972797]
[1645945923688,0.7071363,2741.4,2741.0,0.68387044]
[1645945923988,0.70714805,2741.3,2741.0,0.68934017]
[1645945924188,3.40546867,2741.5,2741.0,0.68934017]
[1645945924389,3.40546867,2741.5,2741.0,1.52375675]
[1645945924593,0.70707269,2741.4,2741.1,0.83441658]
[1645945924825,0.70707537,2741.3,2741.2,0.83441658]
[1645945925224,3.40546867,2741.5,2741.2,0.83441658]
[1645945925424,3.40546867,2741.5,2741.3,0.83441658]
[1645945925625,3.40546867,2741.5,2741.4,0.83441658]
[1645945925925,4.11256008,2741.5,2741.4,0.83441658]
[1645945926125,4.10709141,2741.5,2741.4,0.83441658]
[1645945927229,3.4,2741.5,2741.4,0.83441658]
[1645945927428,4.10708389,2741.5,2741.4,0.83441658]
[1645945929184,4.10693087,2741.5,2741.4,0.83441658]
[1645945929384,3.4,2741.5,2741.4,0.83441658]
[1645945929585,4.10693033,2741.5,2741.4,0.83441658]
[1645945929789,3.4,2741.5,2741.4,0.83441658]
[1645945930185,4.10686999,2741.5,2741.4,0.83441658]
[1645945930386,4.10688656,2741.5,2741.4,0.83441658]
[1645945932452,4.10691529,2741.5,2741.4,1.13441658]
[1645945932647,1.75481881,2741.5,2741.4,2.18458702]
[1645945932851,1.75481881,2741.5,2741.4,1.50071658]
[1645945933046,1.75481881,2741.5,2741.4,2.58647269]
[1645945933253,1.75481881,2741.5,2741.4,4.27468421]
[1645945933453,1.75481881,2741.5,2741.4,3.58647269]
[1645945934153,1.75481881,2741.5,2741.4,4.27424746]
[1645945934754,1.75481881,2741.5,2741.4,3.58647269]
[1645945934958,1.75481881,2741.5,2741.4,4.27423919]
[1645945935553,0.00549306,2741.6,2741.4,4.27423919]
[1645945935754,0.00096,2742.2,2741.5,0.83441658]
[1645945935959,0.0219694,2742.0,2741.6,0.83441658]
[1645945936185,0.0219694,2742.0,2741.4,2.75205611]
[1645945936186,0.74605616,2741.9,2741.7,0.83441658]
[1645945936386,0.0219694,2742.0,2741.8,0.83441658]
[1645945936586,0.0219694,2742.0,2741.9,0.83441658]
[1645945936989,0.74571658,2742.0,2741.9,0.83441658]
[1645945937188,0.00549285,2742.1,2741.9,0.83441658]
[1645945937386,0.74571658,2742.0,2741.4,3.43982261]
[1645945937886,0.74571658,2742.0,2741.5,0.78485247]
[1645945938288,0.74571658,2741.9,2741.5,0.78485247]
[1645945938487,0.74571658,2741.8,2741.5,0.78485247]
[1645945938686,0.00549301,2741.8,2741.5,0.78485247]
[1645945939087,0.00549301,2741.8,2741.5,1.08485247]
[1645945939389,0.00096,2742.3,2741.6,0.78485247]
[1645945939586,0.00549302,2741.8,2741.6,0.78485247]
[1645945940333,1.39161302,2741.8,2741.6,0.78485247]
[1645945940530,1.38612,2741.8,2741.5,0.6]
[1645945940729,1.39161298,2741.8,2741.6,0.7844819]
[1645945941738,1.38612,2741.8,2741.6,0.7844819]
[1645945942038,1.39161298,2741.8,2741.6,0.7844819]
[1645945942842,1.38612,2741.8,2741.6,0.7844819]
[1645945943238,1.391613,2741.8,2741.6,0.7844819]
[1645945944084,1.391613,2741.8,2741.7,0.7844819]
[1645945944286,2.13485909,2741.8,2741.7,0.7844819]
[1645945944487,5.64035209,2741.8,2741.7,0.7844819]
[1645945944885,5.64035209,2741.8,2741.1,0.99]
[1645945945086,0.74873909,2741.7,2741.2,0.78058061]
[1645945945285,3.5,2741.6,2741.2,0.78058061]
[1645945945490,0.74873909,2741.5,2741.2,0.78058061]
[1645945946492,2.54873909,2741.5,2741.2,0.78058061]
[1645945946792,1.80549321,2741.5,2741.2,0.78058061]
[1645945947526,0.74894425,2741.4,2741.2,0.78058061]
[1645945952197,3.5,2741.3,2741.2,0.78058061]
[1645945952596,4.24894425,2741.3,2741.2,0.78058061]
[1645945952797,4.24894425,2741.3,2741.2,0.77937636]
[1645945954501,5.30549309,2741.5,2741.2,0.77937636]
[1645945954937,5.3,2741.5,2741.2,0.77937636]
[1645945955140,5.30549322,2741.5,2741.2,0.77937636]
[1645945955537,1.80549322,2741.5,2741.2,0.77937636]
[1645945955940,5.30549322,2741.5,2741.2,0.77937636]
[1645945956142,5.3,2741.5,2741.2,0.77937636]
[1645945956340,5.30549322,2741.5,2741.2,0.77937636]
[1645945957343,5.3,2741.5,2741.2,0.77937636]
[1645945957544,1.80549322,2741.5,2741.2,0.77937636]
[1645945958454,1.8,2741.5,2741.2,0.77937636]
[1645945958884,1.80549322,2741.5,2741.2,0.77937636]
[1645945959685,1.8,2741.5,2741.2,0.77937636]
[1645945960086,1.80549322,2741.5,2741.2,0.77937636]
[1645945960889,1.8,2741.5,2741.2,0.77937636]
[1645945961292,1.80549322,2741.5,2741.2,0.77937636]
[1645945962094,1.8,2741.5,2741.2,0.77937636]
[1645945962336,1.80549322,2741.5,2741.2,0.77937636]
[1645945963328,1.8,2741.5,2741.2,0.77937636]
[1645945963528,1.80549322,2741.5,2741.2,0.77937636]
[1645945964529,1.8,2741.5,2741.2,0.77937636]
[1645945964729,1.80549322,2741.5,2741.2,0.77937636]
[1645945965731,1.8,2741.5,2741.2,0.77937636]
[1645945965930,1.80549322,2741.5,2741.2,0.77937636]
[1645945966978,1.8,2741.5,2741.2,0.77937636]
[1645945967178,1.80549322,2741.5,2741.2,0.77937636]
[1645945968180,1.8,2741.5,2741.2,0.77937636]
[1645945968380,2.33649322,2741.5,2741.2,0.77937636]
[1645945969281,2.331,2741.5,2741.2,0.77937636]
[1645945969680,2.33649322,2741.5,2741.2,0.77937636]
[1645945970639,2.331,2741.5,2741.2,0.77937636]
[1645945970838,2.33649322,2741.5,2741.2,0.77937636]
[1645945971841,2.331,2741.5,2741.2,0.77937636]
[1645945972041,2.33649322,2741.5,2741.2,0.77937636]
[1645945972842,0.75344137,2741.4,2741.2,0.77937636]
[1645945973877,0.74858215,2741.4,2741.2,0.77937636]
[1645945975482,7.0,2741.3,2741.1,0.99]
[1645945975685,0.99249954,2741.0,2740.3,0.9377665]
[1645945975886,4.031,2740.9,2740.3,0.25]
[1645945976086,4.031,2740.9,2740.2,1.8658]
[1645945976284,4.031,2740.9,2740.1,0.6885665]
[1645945976889,4.02994514,2740.9,2740.1,0.2314665]
[1645945977086,4.02994514,2740.9,2740.0,7.36]
[1645945977532,4.02994514,2740.9,2740.0,8.36]
[1645945978834,4.02994514,2740.9,2740.0,7.36]
[1645945979040,4.02994514,2740.9,2739.8,0.5]
[1645945979041,11.18,2740.4,2739.8,0.5]
[1645945979238,11.18,2740.4,2740.3,5.766e-05]
[1645945979239,13.1914219,2740.4,2740.3,5.766e-05]
[1645945979441,16.6914219,2740.4,2740.3,5.766e-05]
[1645945979636,18.2224219,2740.4,2740.3,5.766e-05]
[1645945979836,18.2224219,2740.4,2739.8,0.04295766]
[1645945979837,7.5,2740.3,2739.8,0.04295766]
[1645945980038,11.18,2740.1,2739.0,0.00309481]
[1645945980236,11.18,2740.1,2738.6,0.3663]
[1645945980237,4.031,2740.0,2738.6,0.36939481]
[1645945980438,16.18,2739.8,2738.8,0.00309481]
[1645945980636,11.18,2739.6,2738.6,0.00309481]
[1645945980834,11.18,2739.6,2738.3,1.15908092]
[1645945980835,15.211,2739.5,2738.4,0.00309481]
[1645945981073,0.1459,2739.4,2738.4,0.00309481]
[1645945981277,0.531,2739.3,2738.4,0.00309481]
[1645945981477,3.5,2739.2,2738.4,0.00309481]
[1645945981677,0.531,2739.1,2738.4,0.00309481]
[1645945981878,3.5,2739.0,2738.1,0.00309481]
[1645945982082,4.031,2739.0,2738.1,0.36939481]
[1645945982277,4.031,2739.0,2738.2,0.91217573]
[1645945982478,0.531,2739.0,2738.2,0.90908092]
[1645945982878,5.0,2738.8,2738.0,0.45507573]
[1645945983078,5.531,2738.8,2738.1,0.00311456]
[1645945983279,5.531,2738.8,2737.9,0.82137573]
[1645945983280,5.831,2738.8,2737.9,0.82137573]
[1645945983478,5.831,2738.8,2738.0,0.00311456]
[1645945983676,0.831,2738.8,2738.0,1.29137647]
[1645945983877,0.831,2738.8,2738.0,1.65767647]
[1645945983878,0.531,2738.8,2738.0,1.65767647]
[1645945984079,2.8775,2739.1,2738.3,0.00585898]
[1645945984922,2.8775,2739.1,2738.1,0.00311456]
[1645945985623,0.08819997,2739.5,2738.6,0.00585879]
[1645945986023,0.08819997,2739.5,2738.0,1.3663]
[1645945986226,0.08819997,2739.5,2738.0,0.3663]
[1645945986929,0.08819997,2739.5,2738.4,1.05080669]
[1645945987126,0.08819997,2739.5,2737.9,1.38248752]
[1645945987127,0.08819997,2739.5,2738.6,0.3663]
[1645945987330,0.08819997,2739.5,2738.5,0.68450669]
[1645945987526,0.08819997,2739.5,2738.4,0.3663]
[1645945988583,0.08819997,2739.5,2738.8,1.13566254]
[1645945988981,0.00585805,2739.1,2738.8,1.13566254]
[1645945989182,0.00585805,2739.1,2738.4,0.3663]
[1645945989381,0.00585805,2739.1,2738.3,2.50670669]
[1645945989582,0.00585805,2739.1,2738.3,1.82529838]
[1645945989784,0.76509997,2739.5,2738.3,1.82529838]
[1645945989987,3.5,2739.4,2738.3,1.82529838]
[1645945990184,0.00585821,2738.8,2738.5,1.21744801]
[1645945990983,3.8,2739.4,2738.5,1.21744801]
[1645945990984,0.3,2739.4,2738.5,1.21744801]
[1645945991386,0.00585824,2738.8,2738.5,1.21744801]
[1645945991589,0.00585824,2738.8,2738.6,0.00309838]
[1645945991789,0.00585824,2738.8,2738.5,1.21744801]
[1645945992188,0.91919997,2739.5,2738.5,1.21744801]
[1645945992432,0.91919997,2739.5,2738.6,0.00309838]
[1645945992433,0.00585824,2738.8,2738.6,0.00309838]
[1645945992636,0.00585824,2738.8,2738.5,1.21744801]
[1645945993531,0.1459,2739.4,2738.5,1.21744801]
[1645945993732,0.00585824,2738.8,2738.5,1.21744801]
[1645945994133,0.00585824,2738.8,2738.5,1.16744801]
[1645945994732,3.6459,2739.4,2738.5,1.16744801]
[1645945994933,0.00585824,2738.8,2738.5,1.16744801]
[1645945995533,0.00585824,2738.8,2738.6,0.67086225]
[1645945995733,0.00067522,2738.8,2738.6,0.67086225]
[1645945996086,0.00585821,2738.8,2738.6,0.67396063]